bitfinex/quotes_BTCUSD_20250907
["timestamp","ask_amount","ask_price","bid_price","bid_amount"]
[1757230332167,0.06936,110840.0,110830.0,0.71233561]
[1757230332368,0.22064,110840.0,110830.0,0.71233561]
[1757230332568,0.22064,110840.0,110830.0,0.72154352]
[1757230332824,0.22064,110840.0,110830.0,0.98804352]
[1757230333262,0.18988547,110850.0,110840.0,0.18044027]
[1757230333466,0.34116457,110850.0,110840.0,0.27739626]
[1757230333873,0.16074058,110850.0,110840.0,0.27739626]
[1757230334570,0.16074058,110850.0,110840.0,0.30450345]
[1757230335277,0.34116457,110850.0,110840.0,0.30450345]
[1757230336416,0.34116457,110850.0,110840.0,0.30550345]
[1757230338112,0.18988457,110850.0,110840.0,0.30550345]
[1757230338348,0.00024915,110850.0,110840.0,0.67234511]
[1757230338562,0.15140915,110850.0,110840.0,0.93884511]
[1757230338762,0.15140915,110850.0,110840.0,0.62200345]
[1757230339177,0.15140915,110850.0,110840.0,0.93884511]
[1757230339381,0.15140915,110850.0,110840.0,0.62200345]
[1757230340211,0.33183314,110850.0,110840.0,0.62200345]
[1757230340628,0.15140915,110850.0,110840.0,0.62200345]
[1757230341269,0.00024915,110850.0,110840.0,0.62200345]
[1757230341453,0.15136915,110850.0,110840.0,0.62200345]
[1757230342813,0.15136915,110850.0,110840.0,0.93884511]
[1757230343736,0.15136915,110850.0,110840.0,0.62200345]
[1757230344349,0.15132915,110850.0,110840.0,0.62200345]
[1757230345134,0.33175314,110850.0,110840.0,0.62200345]
[1757230345353,0.30514002,110850.0,110840.0,0.61906345]
[1757230345576,0.30547465,110850.0,110840.0,0.35550345]
[1757230346196,0.30547465,110850.0,110840.0,0.35650345]
[1757230346652,0.30547465,110850.0,110840.0,0.35550345]
[1757230347282,0.30547465,110850.0,110840.0,0.35750345]
[1757230348615,0.15137463,110850.0,110840.0,0.35750345]
[1757230350213,0.33179862,110850.0,110840.0,0.35750345]
[1757230351004,0.15137463,110850.0,110840.0,0.35750345]
[1757230351814,0.33179862,110850.0,110840.0,0.35750345]
[1757230352180,0.33179862,110850.0,110840.0,0.35456345]
[1757230352875,0.15137463,110850.0,110840.0,0.35456345]
[1757230353081,0.00033463,110850.0,110840.0,0.35456345]
[1757230353278,0.00033463,110850.0,110840.0,0.35750345]
[1757230353279,0.15125463,110850.0,110840.0,0.35750345]
[1757230353630,0.15129463,110850.0,110840.0,0.67426583]
[1757230353838,0.15129463,110850.0,110840.0,0.35750345]
[1757230354189,0.00033463,110850.0,110840.0,0.67426583]
[1757230354616,0.00033463,110850.0,110840.0,0.35750345]
[1757230355039,0.00033463,110850.0,110840.0,0.67426583]
[1757230356110,0.00033463,110850.0,110840.0,0.69520465]
[1757230362363,0.00033463,110850.0,110840.0,0.96170465]
[1757230362721,0.00033463,110850.0,110840.0,0.37844227]
[1757230362929,0.00033463,110850.0,110840.0,0.69520465]
[1757230364794,0.00033463,110850.0,110840.0,0.37844227]
[1757230364931,0.00033463,110850.0,110840.0,0.69520465]
[1757230365955,0.00033463,110850.0,110840.0,0.69420465]
[1757230366347,0.00033463,110850.0,110840.0,0.69620465]
[1757230367815,0.00033463,110850.0,110840.0,0.84708465]
[1757230368026,0.00033463,110850.0,110840.0,0.84508465]
[1757230368226,0.00033463,110850.0,110840.0,1.11458465]
[1757230370000,0.00033463,110850.0,110840.0,0.96370465]
[1757230370220,0.00033463,110850.0,110840.0,1.11458465]
[1757230373004,0.00033463,110850.0,110840.0,0.79782227]
[1757230373206,0.00033463,110850.0,110840.0,1.11458465]
[1757230373620,0.00033463,110850.0,110840.0,1.11164465]
[1757230374273,0.00033463,110850.0,110840.0,1.11458465]
[1757230383413,0.00555463,110850.0,110840.0,0.7017145]
[1757230383613,0.00555463,110850.0,110840.0,0.8528345]
[1757230385346,0.00555463,110850.0,110840.0,0.8548745]
[1757230385556,0.00033463,110850.0,110840.0,0.8548745]
[1757230386036,0.00033463,110850.0,110840.0,1.17163688]
[1757230386375,0.00033463,110850.0,110840.0,1.17457688]
[1757230386808,0.00033463,110850.0,110840.0,0.8578145]
[1757230387066,0.00033463,110850.0,110840.0,1.17457688]
[1757230389360,0.00033463,110850.0,110840.0,0.8578145]
[1757230389567,0.00033463,110850.0,110840.0,1.17457688]
[1757230396431,0.00033463,110850.0,110840.0,0.8578145]
[1757230396654,0.00033463,110850.0,110840.0,1.17457688]
[1757230400112,0.00033463,110850.0,110840.0,1.1955157]
[1757230409652,0.00033463,110850.0,110840.0,1.19545183]
[1757230413031,0.00033463,110850.0,110840.0,0.87875332]
[1757230413240,0.00033463,110850.0,110840.0,1.19545183]
[1757230414579,0.00033463,110850.0,110840.0,0.72763332]
[1757230414828,0.00033463,110850.0,110840.0,1.19231183]
[1757230415385,0.00033463,110850.0,110840.0,1.04139183]
[1757230415588,0.00559463,110850.0,110840.0,1.19227183]
[1757230415795,0.18040847,110860.0,110850.0,0.18042399]
[1757230416054,0.18290973,110860.0,110850.0,0.42325998]
[1757230416425,0.18290973,110860.0,110850.0,0.45036411]
[1757230417971,0.18586973,110860.0,110850.0,0.45236411]
[1757230418176,0.18586973,110860.0,110850.0,0.45336411]
[1757230418332,0.18586973,110860.0,110850.0,0.30244411]
[1757230418538,0.18586973,110860.0,110850.0,0.45332411]
[1757230421837,0.18586973,110860.0,110850.0,0.71982411]
[1757230422046,0.18586973,110860.0,110850.0,0.43852012]
[1757230422230,0.18586898,110860.0,110850.0,0.61894411]
[1757230422429,0.18586898,110860.0,110850.0,0.76982411]
[1757230422811,0.18586898,110860.0,110850.0,0.61894411]
[1757230423226,0.18586898,110860.0,110850.0,0.76982411]
[1757230424070,0.00546126,110860.0,110850.0,0.76982411]
[1757230424429,0.18586898,110860.0,110850.0,0.76982411]
[1757230425814,0.00546126,110860.0,110850.0,0.76982411]
[1757230426444,0.18586898,110860.0,110850.0,0.76982411]
[1757230427759,0.18586898,110860.0,110850.0,0.50380511]
[1757230428603,0.00546126,110860.0,110850.0,0.50380511]
[1757230428819,0.18586898,110860.0,110850.0,0.50380511]
[1757230431565,0.00546126,110860.0,110850.0,0.50380511]
[1757230435830,0.18586898,110860.0,110850.0,0.50380511]
[1757230438110,0.00546126,110860.0,110850.0,0.50380511]
[1757230438941,0.18586898,110860.0,110850.0,0.50380511]
[1757230439573,0.18586898,110860.0,110850.0,0.77030511]
[1757230440432,0.00546126,110860.0,110850.0,0.77030511]
[1757230440647,0.00546126,110860.0,110850.0,0.77236511]
[1757230441156,0.00037126,110860.0,110850.0,1.08906362]
[1757230441378,0.00239126,110860.0,110850.0,0.77236511]
[1757230441590,0.00535126,110860.0,110850.0,1.08906362]
[1757230442297,0.00535126,110860.0,110850.0,0.77236511]
[1757230442519,0.00535126,110860.0,110850.0,1.08906362]
[1757230442738,0.18575898,110860.0,110850.0,1.08906362]
[1757230442979,0.00535126,110860.0,110850.0,0.77030511]
[1757230443943,0.00535126,110860.0,110850.0,1.08906362]
[1757230444161,0.00535126,110860.0,110850.0,0.77236511]
[1757230444377,0.00535126,110860.0,110850.0,1.08906362]
[1757230445405,0.00535126,110860.0,110850.0,0.77236511]
[1757230445641,0.00535126,110860.0,110850.0,1.08906362]
[1757230447708,0.18575898,110860.0,110850.0,1.08700362]
[1757230449050,0.00037126,110860.0,110850.0,1.16307095]
[1757230449286,0.00037126,110860.0,110850.0,0.84637244]
[1757230452676,0.18040237,110880.0,110870.0,0.18039144]
[1757230452892,0.18246237,110880.0,110870.0,0.53880743]
[1757230453889,0.19148112,110880.0,110870.0,0.5659083]
[1757230454696,0.19463112,110880.0,110870.0,0.5659083]
[1757230456904,0.19463112,110880.0,110870.0,0.60744691]
[1757230459277,0.18561237,110880.0,110870.0,0.60943691]
[1757230459724,0.18561237,110880.0,110870.0,0.60744691]
[1757230460576,0.33645237,110880.0,110870.0,0.60744691]
[1757230462177,0.33645237,110880.0,110870.0,0.65744691]
[1757230463616,0.33645237,110880.0,110870.0,0.65792791]
[1757230469905,0.18561237,110880.0,110870.0,0.65792791]
[1757230470160,0.33645237,110880.0,110870.0,0.65792791]
[1757230473979,0.31014072,110880.0,110870.0,0.65792791]
[1757230476296,0.31014072,110880.0,110870.0,0.65744691]
[1757230480371,0.31014072,110880.0,110870.0,0.65792791]
[1757230480990,0.31014072,110880.0,110870.0,0.39142791]
[1757230499055,0.09439919,110880.0,110870.0,0.39142791]
[1757230499265,0.33317237,110880.0,110870.0,0.39462791]
[1757230501005,0.33317237,110880.0,110870.0,0.39658791]
[1757230501574,0.18237237,110880.0,110870.0,0.39658791]
[1757230501783,0.33317237,110880.0,110870.0,0.39658791]
[1757230502968,0.33317237,110880.0,110870.0,0.39462791]
[1757230503148,0.18237237,110880.0,110870.0,0.39462791]
[1757230503748,0.33317237,110880.0,110870.0,0.39462791]
[1757230504152,0.33317237,110880.0,110870.0,0.39142791]
[1757230504354,0.18237237,110880.0,110870.0,0.39462791]
[1757230504559,0.33317237,110880.0,110870.0,0.39462791]
[1757230505330,0.18237237,110880.0,110870.0,0.39462791]
[1757230505537,0.33317237,110880.0,110870.0,0.39462791]
[1757230506474,0.18237237,110880.0,110870.0,0.39462791]
[1757230506677,0.33317237,110880.0,110870.0,0.39462791]
[1757230509372,0.33317237,110880.0,110870.0,0.39666791]
[1757230509803,0.33317237,110880.0,110870.0,0.21423647]
[1757230509997,0.33317237,110880.0,110870.0,0.39462791]
[1757230510221,0.33317237,110880.0,110870.0,0.21423647]
[1757230510446,0.18237237,110880.0,110870.0,0.39462791]
[1757230510586,0.33317237,110880.0,110870.0,0.39462791]
[1757230512867,0.18237237,110880.0,110870.0,0.39666791]
[1757230513062,0.33317237,110880.0,110870.0,0.39666791]
[1757230513613,0.33317237,110880.0,110870.0,0.21627647]
[1757230514626,0.33317237,110880.0,110870.0,0.39666791]
[1757230515631,0.33317237,110880.0,110870.0,0.21627647]
[1757230516933,0.33317237,110880.0,110870.0,0.26103647]
[1757230519184,0.33317237,110880.0,110870.0,0.44142791]
[1757230519791,0.33317237,110880.0,110870.0,0.44436791]
[1757230519993,0.33317237,110880.0,110870.0,0.26397647]
[1757230520802,0.33317237,110880.0,110870.0,0.44436791]
[1757230522829,0.33317237,110880.0,110870.0,0.44640791]
[1757230524037,0.33120237,110880.0,110870.0,0.44640791]
[1757230525535,0.18040237,110880.0,110870.0,0.44640791]
[1757230525748,0.33117518,110880.0,110870.0,0.44640791]
[1757230528581,0.02710088,110890.0,110880.0,0.23037518]
[1757230528788,0.15076,110890.0,110880.0,0.6438928]
[1757230529373,0.65920768,110900.0,110890.0,0.1791849]
[1757230529551,0.78286926,110900.0,110890.0,0.49784653]
[1757230529774,0.78286926,110900.0,110890.0,0.1841649]
[1757230530118,0.56278926,110900.0,110890.0,0.21126242]
[1757230530322,0.70443955,110900.0,110890.0,0.66980004]
[1757230530726,0.70443955,110900.0,110890.0,0.35317841]
[1757230531408,0.70443955,110900.0,110890.0,0.66980004]
[1757230531613,0.70443955,110900.0,110890.0,0.35317841]
[1757230533650,0.70443955,110900.0,110890.0,0.66965105]
[1757230534314,0.5240969,110900.0,110890.0,0.66965105]
[1757230534530,0.70443955,110900.0,110890.0,0.93615105]
[1757230539790,0.55367955,110900.0,110890.0,0.93615105]
[1757230540086,0.70443955,110900.0,110890.0,0.61967841]
[1757230540306,0.70443955,110900.0,110890.0,1.08691105]
[1757230540715,0.70443955,110900.0,110890.0,0.93615105]
[1757230540915,0.70443955,110900.0,110890.0,1.08691105]
[1757230541929,0.70443955,110900.0,110890.0,0.61967841]
[1757230542114,0.70624955,110900.0,110890.0,0.59125351]
[1757230543076,0.70624955,110900.0,110890.0,0.77161242]
[1757230543283,0.70624955,110900.0,110890.0,0.62085242]
[1757230545196,0.70624955,110900.0,110890.0,0.77161242]
[1757230550023,0.70443955,110900.0,110890.0,1.08808506]
[1757230553328,0.49800664,110900.0,110890.0,0.77161242]
[1757230553618,0.33110265,110900.0,110890.0,0.77161242]
[1757230554792,0.21675551,110910.0,110890.0,0.77161242]
[1757230554981,0.15076,110900.0,110890.0,0.76867242]
[1757230555181,0.15076,110900.0,110890.0,1.08514506]
[1757230555676,0.15076,110900.0,110890.0,0.77164242]
[1757230555890,0.33110265,110900.0,110890.0,0.77164242]
[1757230556345,0.15076,110900.0,110890.0,0.77164242]
[1757230557471,0.33110265,110900.0,110890.0,0.77164242]
[1757230557931,0.33110265,110900.0,110890.0,1.08811506]
[1757230558149,0.15076,110900.0,110890.0,0.82161506]
[1757230558602,0.15076,110900.0,110890.0,0.50514242]
[1757230558849,0.15076,110900.0,110890.0,0.82161506]
[1757230559549,0.5572219,110910.0,110900.0,0.18034265]
[1757230559849,0.7097519,110910.0,110900.0,0.22578241]
[1757230560298,0.7097519,110910.0,110900.0,0.22085241]
[1757230560925,0.7097519,110910.0,110900.0,0.22382241]
[1757230562167,0.5590319,110910.0,110900.0,0.22578241]
[1757230562369,0.3697519,110910.0,110900.0,0.22578241]
[1757230562648,0.2190319,110910.0,110900.0,0.22578241]
[1757230562884,0.3679419,110910.0,110900.0,0.22578241]
[1757230563532,0.2172219,110910.0,110900.0,0.22578241]
[1757230563745,0.3679419,110910.0,110900.0,0.22578241]
[1757230566042,0.3697519,110910.0,110900.0,0.22578241]
[1757230566459,0.2190319,110910.0,110900.0,0.22578241]
[1757230566671,0.3697519,110910.0,110900.0,0.22578241]
[1757230567213,0.2172219,110910.0,110900.0,0.22578241]
[1757230567432,0.3679419,110910.0,110900.0,0.22578241]
[1757230568038,0.3697519,110910.0,110900.0,0.22578241]
[1757230568656,0.3697519,110910.0,110900.0,0.2528778]
[1757230572312,0.34265439,110910.0,110900.0,0.22578241]
[1757230575904,0.34265439,110910.0,110900.0,0.49228241]
[1757230576958,0.34084439,110910.0,110900.0,0.49228241]
[1757230577704,0.19012439,110910.0,110900.0,0.49228241]
[1757230577874,0.34084439,110910.0,110900.0,0.49228241]
[1757230578266,0.34084439,110910.0,110900.0,0.31193976]
[1757230582791,0.34265439,110910.0,110900.0,0.31193976]
[1757230584240,0.19193439,110910.0,110900.0,0.31193976]
[1757230584451,0.34261439,110910.0,110900.0,0.31193976]
[1757230584864,0.34080439,110910.0,110900.0,0.31193976]
[1757230585878,0.36789978,110910.0,110900.0,0.31193976]
[1757230586861,0.70789978,110910.0,110900.0,0.31193976]
[1757230587354,0.55721978,110910.0,110900.0,0.31193976]
[1757230587523,0.70789978,110910.0,110900.0,0.31193976]
[1757230587735,0.70789978,110910.0,110900.0,0.04543976]
[1757230590930,0.70789978,110910.0,110900.0,0.22578241]
[1757230591338,0.70789978,110910.0,110900.0,0.04543976]
[1757230591977,0.70789978,110910.0,110900.0,0.22578241]
[1757230593995,0.55721978,110910.0,110900.0,0.22578241]
[1757230594196,0.70789978,110910.0,110900.0,0.22578241]
[1757230595244,0.55721978,110910.0,110900.0,0.22578241]
[1757230595509,0.70789978,110910.0,110900.0,0.22578241]
[1757230596281,0.55721978,110910.0,110900.0,0.22578241]
[1757230596481,0.70789978,110910.0,110900.0,0.22578241]
[1757230598162,0.55721978,110910.0,110900.0,0.22578241]
[1757230598337,0.70970978,110910.0,110900.0,0.22578241]
[1757230600396,0.55902978,110910.0,110900.0,0.22578241]
[1757230600547,0.70970978,110910.0,110900.0,0.22578241]
[1757230602172,0.55902978,110910.0,110900.0,0.22578241]
[1757230602458,0.70970978,110910.0,110900.0,0.22578241]
[1757230604012,0.55902978,110910.0,110900.0,0.22578241]
[1757230604264,0.70966978,110910.0,110900.0,0.22578241]
[1757230606244,0.55902978,110910.0,110900.0,0.22578241]
[1757230606460,0.70966978,110910.0,110900.0,0.22578241]
[1757230614879,0.70966978,110910.0,110900.0,0.04543976]
[1757230617302,0.70966978,110910.0,110900.0,0.22578241]
[1757230618775,0.70966978,110910.0,110900.0,0.04543976]
[1757230623907,0.70966978,110910.0,110900.0,0.22578241]
[1757230625573,0.70966978,110910.0,110900.0,0.70512816]
[1757230625574,0.00046639,110910.0,110900.0,0.70512816]
[1757230626191,8e-05,110920.0,110900.0,0.70512816]
[1757230626504,0.00016409,110920.0,110910.0,0.71110332]
[1757230626944,0.00016409,110920.0,110910.0,1.06572907]
[1757230627198,0.00016409,110920.0,110910.0,0.89983813]
[1757230628345,0.00016409,110920.0,110910.0,0.74923813]
[1757230628552,0.00016409,110920.0,110910.0,0.89983813]
[1757230631666,0.00016409,110920.0,110910.0,1.16633813]
[1757230632438,0.00016409,110920.0,110910.0,0.69027547]
[1757230632612,0.00016409,110920.0,110910.0,0.86177429]
[1757230633267,0.00016409,110920.0,110910.0,0.71121429]
[1757230633483,0.00016409,110920.0,110910.0,0.59527429]
[1757230633715,0.00016409,110920.0,110910.0,0.91176523]
[1757230635157,0.00016409,110920.0,110910.0,0.59527429]
[1757230636169,0.00016409,110920.0,110910.0,0.91176523]
[1757230636567,0.00016409,110920.0,110910.0,0.76120523]
[1757230636794,0.00016409,110920.0,110910.0,0.91176523]
[1757230637761,0.00016409,110920.0,110910.0,0.59527429]
[1757230641395,0.00016409,110920.0,110910.0,0.91176523]
[1757230642256,0.00016409,110920.0,110910.0,0.59527429]
[1757230642469,0.00016409,110920.0,110910.0,0.91176523]
[1757230644168,0.00016409,110920.0,110910.0,0.86177429]
[1757230644365,0.00016409,110920.0,110910.0,1.17826523]
[1757230654662,0.21701914,110940.0,110920.0,0.18031013]
[1757230654889,0.21701914,110940.0,110930.0,0.24239599]
[1757230655133,0.21882914,110940.0,110930.0,0.24239599]
[1757230656809,0.21882914,110940.0,110930.0,0.24535599]
[1757230657250,0.21882914,110940.0,110930.0,0.24239599]
[1757230657468,0.21882914,110940.0,110930.0,0.29239599]
[1757230657677,0.21882914,110940.0,110930.0,0.33246111]
[1757230658595,0.22035914,110940.0,110930.0,0.33246111]
[1757230658856,0.21882914,110940.0,110930.0,0.33246111]
[1757230659820,0.21882914,110940.0,110930.0,0.18198111]
[1757230660073,0.24870914,110940.0,110930.0,0.24054512]
[1757230660488,0.24717914,110940.0,110930.0,0.24054512]
[1757230664085,0.02772759,110940.0,110930.0,0.7244878]
[1757230664332,0.02772759,110940.0,110930.0,0.5884571]
[1757230664833,0.02772759,110940.0,110930.0,0.51784498]
[1757230669261,0.02772759,110940.0,110930.0,0.83416955]
[1757230669401,0.02772759,110940.0,110930.0,0.68368955]
[1757230669583,0.02772759,110940.0,110930.0,0.83416955]
[1757230669812,0.02772759,110940.0,110930.0,0.51784498]
[1757230671619,0.02772759,110940.0,110930.0,0.54488904]
[1757230672542,0.02772759,110940.0,110930.0,0.86121361]
[1757230675776,0.02772759,110940.0,110930.0,0.86221361]
[1757230677421,0.02772759,110940.0,110930.0,1.539477]
[1757230677653,0.02772759,110940.0,110930.0,1.22315243]
[1757230679644,0.02772759,110940.0,110930.0,0.90682786]
[1757230679827,0.02772759,110940.0,110930.0,1.22315243]
[1757230680258,0.02772759,110940.0,110930.0,1.539477]
[1757230680465,0.02772759,110940.0,110930.0,1.22315243]
[1757230682625,0.02772759,110940.0,110930.0,1.539477]
[1757230682863,0.02772759,110940.0,110930.0,1.589477]
[1757230684000,0.02772759,110940.0,110930.0,1.588477]
[1757230684214,0.02772759,110940.0,110930.0,1.590477]
[1757230685603,0.02772759,110940.0,110930.0,1.806977]
[1757230685820,0.02772759,110940.0,110930.0,1.49065243]
[1757230686113,0.02772759,110940.0,110930.0,1.807977]
[1757230686338,0.02772759,110940.0,110930.0,1.17532786]
[1757230686546,0.02772759,110940.0,110930.0,1.807977]
[1757230697384,0.02772759,110940.0,110930.0,1.657537]
[1757230697607,0.02772759,110940.0,110930.0,1.807937]
[1757230698174,0.02772759,110940.0,110930.0,1.17528786]
[1757230698380,0.02772759,110940.0,110930.0,1.807937]
[1757230698760,0.02772759,110940.0,110930.0,1.657537]
[1757230699214,0.02772759,110940.0,110930.0,1.807937]
[1757230699460,0.02772759,110940.0,110930.0,1.657537]
[1757230699634,0.02772759,110940.0,110930.0,1.807937]
[1757230704744,0.02772759,110940.0,110930.0,1.657537]
[1757230704944,0.02772759,110940.0,110930.0,1.807937]
[1757230705305,0.02772759,110940.0,110930.0,1.88847949]
[1757230705756,0.02772759,110940.0,110930.0,1.80735949]
[1757230706362,0.02772759,110940.0,110930.0,1.95775949]
[1757230706728,0.02772759,110940.0,110930.0,1.64143492]
[1757230706972,0.02772759,110940.0,110930.0,1.56089243]
[1757230707181,0.02772759,110940.0,110930.0,1.24456786]
[1757230707368,0.02772759,110940.0,110930.0,1.56089243]
[1757230710485,0.02772759,110940.0,110930.0,1.24456786]
[1757230710722,0.02772759,110940.0,110930.0,1.877217]
[1757230712315,0.02772759,110940.0,110930.0,1.24456786]
[1757230712520,0.02772759,110940.0,110930.0,1.877217]
[1757230712747,0.02772759,110940.0,110930.0,1.24456786]
[1757230712935,0.02772759,110940.0,110930.0,1.56089243]
[1757230713186,0.02772759,110940.0,110930.0,1.877217]
[1757230714610,0.02772759,110940.0,110930.0,1.726817]
[1757230714827,0.02772759,110940.0,110930.0,1.877217]
[1757230717272,0.02772759,110940.0,110930.0,1.24456786]
[1757230717492,0.02772759,110940.0,110930.0,1.87678466]
[1757230718355,0.02772759,110940.0,110930.0,1.24456786]
[1757230718574,0.02772759,110940.0,110930.0,1.32511035]
[1757230718778,0.02772759,110940.0,110930.0,1.64121875]
[1757230719189,0.02772759,110940.0,110930.0,1.32511035]
[1757230719395,0.02772759,110940.0,110930.0,1.64121875]
[1757230719611,0.02772759,110940.0,110930.0,1.32511035]
[1757230719818,0.02772759,110940.0,110930.0,1.64121875]
[1757230722131,0.02772759,110940.0,110930.0,1.49081875]
[1757230722341,0.02772759,110940.0,110930.0,1.64225875]
[1757230722843,0.02772759,110940.0,110930.0,1.49081875]
[1757230723061,0.02772759,110940.0,110930.0,1.64225875]
[1757230723270,0.02772759,110940.0,110930.0,1.64229875]
[1757230723481,0.02772759,110940.0,110930.0,1.49081875]
[1757230723920,0.02772759,110940.0,110930.0,1.64225875]
[1757230724372,0.02772759,110940.0,110930.0,1.49081875]
[1757230724795,0.02772759,110940.0,110930.0,1.64225875]
[1757230728216,0.02772759,110940.0,110930.0,1.17471035]
[1757230728427,0.02772759,110940.0,110930.0,1.21959626]
[1757230728628,0.02772759,110940.0,110930.0,1.22169626]
[1757230731110,0.02772759,110940.0,110930.0,0.90558786]
[1757230731332,0.02772759,110940.0,110930.0,1.22169626]
[1757230731533,0.02772759,110940.0,110930.0,0.90558786]
[1757230731876,0.02772759,110940.0,110930.0,1.22169626]
[1757230732679,0.20800521,110940.0,110930.0,0.90558786]
[1757230732934,0.20981521,110940.0,110930.0,0.52076111]
[1757230733156,0.20981521,110940.0,110930.0,0.67224111]
[1757230733361,0.20981521,110940.0,110930.0,0.98834951]
[1757230733569,0.20981521,110940.0,110930.0,0.67224111]
[1757230733773,0.20981521,110940.0,110930.0,0.98834951]
[1757230733972,0.20981521,110940.0,110930.0,0.83686951]
[1757230734971,0.20981521,110940.0,110930.0,0.98838951]
[1757230736284,0.20981521,110940.0,110930.0,0.40578111]
[1757230736512,0.20981521,110940.0,110930.0,0.40478111]
[1757230736732,0.20981521,110940.0,110930.0,0.40278111]
[1757230737157,0.20981521,110940.0,110930.0,0.40378111]
[1757230738754,0.20981521,110940.0,110930.0,0.58407498]
[1757230740403,0.20981521,110940.0,110930.0,0.40378111]
[1757230740599,0.20981521,110940.0,110930.0,0.58407498]
[1757230741917,0.20981521,110940.0,110930.0,1.16668338]
[1757230742130,0.20981521,110940.0,110930.0,1.16978338]
[1757230743324,0.20981521,110940.0,110930.0,0.70215498]
[1757230743526,0.20981521,110940.0,110930.0,1.16656338]
[1757230745192,0.02953759,110940.0,110930.0,1.16656338]
[1757230745412,0.02953759,110940.0,110930.0,1.16966338]
[1757230745613,0.02953759,110940.0,110930.0,1.16974338]
[1757230745873,0.02953759,110940.0,110930.0,1.17184338]
[1757230746312,0.02953759,110940.0,110930.0,0.85573498]
[1757230746517,0.02953759,110940.0,110930.0,1.17184338]
[1757230746891,0.20981521,110940.0,110930.0,1.17184338]
[1757230752006,0.03863884,110940.0,110930.0,1.17184338]
[1757230754124,0.20778204,110950.0,110930.0,1.17184338]
[1757230754332,0.20778204,110950.0,110940.0,0.15144]
[1757230758620,0.18027762,110940.0,110930.0,1.16866338]
[1757230758824,0.18027762,110940.0,110930.0,1.17079338]
[1757230759950,0.02752059,110950.0,110940.0,0.25121644]
[1757230760182,0.02752059,110950.0,110940.0,0.66460083]
[1757230760386,0.00043562,110950.0,110940.0,0.66460083]
[1757230761261,0.00043562,110950.0,110940.0,0.69167973]
[1757230761708,0.00043562,110950.0,110940.0,0.37657133]
[1757230761897,0.00043562,110950.0,110940.0,0.69267973]
[1757230762352,0.14283243,110970.0,110950.0,0.18024868]
[1757230762546,0.32320132,110970.0,110960.0,0.09191599]
[1757230763856,0.33221276,110970.0,110960.0,0.09191599]
[1757230764077,0.33168873,110970.0,110960.0,0.09191599]
[1757230764306,0.33168873,110970.0,110960.0,0.09514599]
[1757230764637,0.33168873,110970.0,110960.0,0.27539112]
[1757230764867,0.33168873,110970.0,110960.0,0.14191599]
[1757230765083,0.33168873,110970.0,110960.0,0.05]
[1757230765295,0.35911873,110970.0,110960.0,0.09095383]
[1757230765727,0.38619842,110970.0,110960.0,0.09095383]
[1757230775881,0.38619842,110970.0,110960.0,0.04095383]
[1757230776310,0.18024513,110960.0,110950.0,0.3165]
[1757230776529,0.18024513,110960.0,110950.0,0.41164599]
[1757230777623,0.18024513,110960.0,110950.0,0.14514599]
[1757230778502,0.18024513,110960.0,110950.0,0.14191599]
[1757230779484,0.18026137,110950.0,110940.0,0.05]
[1757230779694,0.33198137,110950.0,110940.0,0.05]
[1757230779894,0.33198137,110950.0,110940.0,0.05296]
[1757230780321,0.35906629,110950.0,110940.0,0.05296]
[1757230782416,0.35906629,110950.0,110940.0,0.05396]
[1757230782629,0.35906629,110950.0,110940.0,0.23423762]
[1757230783103,0.35906629,110950.0,110940.0,0.05396]
[1757230793299,0.35906629,110950.0,110940.0,0.051]
[1757230793506,0.72749629,110950.0,110940.0,0.001]
[1757230794210,0.18027762,110940.0,110930.0,0.04006512]
[1757230794575,0.18029387,110930.0,110920.0,0.36912258]
[1757230794796,0.33165387,110930.0,110920.0,0.14691599]
[1757230794993,0.35874212,110930.0,110920.0,0.14691599]
[1757230795196,0.02708825,110930.0,110920.0,0.80243384]
[1757230795397,0.02708825,110930.0,110920.0,0.9804901]
[1757230795596,0.02708825,110930.0,110920.0,1.00757272]
[1757230795947,0.15136,110950.0,110940.0,0.18027762]
[1757230796262,0.17844262,110950.0,110940.0,0.59335619]
[1757230796387,0.17844262,110950.0,110940.0,0.27719361]
[1757230796586,0.17844262,110950.0,110940.0,0.59335619]
[1757230796790,0.17844262,110950.0,110940.0,0.63305295]
[1757230797452,0.02708262,110950.0,110940.0,0.63305295]
[1757230797658,0.17844262,110950.0,110940.0,0.63305295]
[1757230798413,0.17840262,110950.0,110940.0,0.63305295]
[1757230800730,0.15132,110950.0,110940.0,0.63305295]
[1757230801160,0.20746781,110960.0,110940.0,0.63305295]
[1757230801364,0.15128,110950.0,110940.0,0.63009295]
[1757230801935,0.15128,110950.0,110940.0,0.63305295]
[1757230802540,0.54746781,110960.0,110950.0,0.23026137]
[1757230802778,0.69870781,110960.0,110950.0,0.23526137]
[1757230803739,0.20746781,110960.0,110950.0,0.55142395]
[1757230803957,0.35866781,110960.0,110950.0,0.23526137]
[1757230804560,0.35874757,110960.0,110950.0,0.32717736]
[1757230813201,0.33166495,110960.0,110950.0,0.32717736]
[1757230813831,0.10727495,110960.0,110950.0,0.14691599]
[1757230814052,0.28752008,110960.0,110950.0,0.14691599]
[1757230814273,0.40820607,110960.0,110940.0,0.03969676]
[1757230814485,0.27831137,110950.0,110940.0,0.03969676]
[1757230814690,0.27831137,110950.0,110920.0,0.05308]
[1757230814691,0.18029387,110930.0,110920.0,0.05308]
[1757230814918,0.33145387,110930.0,110920.0,0.14708599]
[1757230815146,0.33145387,110930.0,110920.0,0.46324857]
[1757230815537,0.33145387,110930.0,110920.0,0.50358889]
[1757230816789,0.33145387,110930.0,110920.0,0.18742631]
[1757230817001,0.33145387,110930.0,110920.0,0.19042631]
[1757230818323,0.33145387,110930.0,110920.0,0.19242631]
[1757230818765,0.33145387,110930.0,110920.0,0.19042631]
[1757230818993,0.33145387,110930.0,110920.0,0.19142631]
[1757230819647,0.33145387,110930.0,110920.0,0.37173644]
[1757230819855,0.33145387,110930.0,110920.0,0.36873644]
[1757230820284,0.33145387,110930.0,110920.0,0.37073644]
[1757230820704,0.33145387,110930.0,110920.0,0.36873644]
[1757230821114,0.33145387,110930.0,110920.0,0.18842631]
[1757230821623,0.34033576,110930.0,110920.0,0.19042631]
[1757230824668,0.34033576,110930.0,110920.0,0.37073644]
[1757230824806,0.34033576,110930.0,110920.0,0.19042631]
[1757230826440,0.33145387,110930.0,110920.0,0.37073644]
[1757230827257,0.33145387,110930.0,110920.0,0.19042631]
[1757230827493,0.33145387,110930.0,110920.0,0.37073644]
[1757230828174,0.34031793,110930.0,110920.0,0.37073644]
[1757230828842,0.18915793,110930.0,110920.0,0.37073644]
[1757230829075,0.34011793,110930.0,110920.0,0.37073644]
[1757230829815,0.34011793,110930.0,110920.0,0.19042631]
[1757230829981,0.34011793,110930.0,110920.0,0.37073644]
[1757230830188,0.34011793,110930.0,110920.0,0.19042631]
[1757230830430,0.34011793,110930.0,110920.0,0.37073644]
[1757230842858,0.18915793,110930.0,110920.0,0.37073644]
[1757230843090,0.34011793,110930.0,110920.0,0.37073644]
[1757230847797,0.34011793,110930.0,110920.0,0.36873644]
[1757230848005,0.34011793,110930.0,110920.0,0.36773644]
[1757230848506,0.34011793,110930.0,110920.0,0.36873644]